[Event "Late-Titled-Tuesday-Blitz-January-30-2024"]
[Site "Chess.com"]
[Date "2024.01.30"]
[Round "11"]
[White "neri_gaite"]
[Black "rose107"]
[Result "1-0"]
[WhiteElo "2032"]
[BlackElo "2105"]
[TimeControl "180+1"]
[EndTime "16:07:28 PST"]
[Termination "neri_gaite won by checkmate"]

1. d4 {[%clk 0:02:59.3]} 1... d5 {[%clk 0:02:15.3]} 2. c4 {[%clk 0:02:58.4]}
2... e6 {[%clk 0:02:14.9]} 3. Nc3 {[%clk 0:02:58.5]} 3... Nf6 {[%clk 0:02:14.8]}
4. Bg5 {[%clk 0:02:59]} 4... Be7 {[%clk 0:02:14.4]} 5. e3 {[%clk 0:02:59.5]}
5... O-O {[%clk 0:02:14.1]} 6. Nf3 {[%clk 0:02:59.7]} 6... Nbd7 {[%clk
0:02:10.1]} 7. Qc2 {[%clk 0:02:59.5]} 7... a6 {[%clk 0:02:01.6]} 8. Bd3 {[%clk
0:02:56.3]} 8... dxc4 {[%clk 0:02:01.1]} 9. Bxc4 {[%clk 0:02:57.2]} 9... b5
{[%clk 0:02:01.3]} 10. Bd3 {[%clk 0:02:57.7]} 10... Bb7 {[%clk 0:02:01.8]} 11.
Bxf6 {[%clk 0:02:48.6]} 11... Nxf6 {[%clk 0:01:59.9]} 12. Ne4 {[%clk 0:02:49.2]}
12... Nxe4 {[%clk 0:01:56.9]} 13. Bxe4 {[%clk 0:02:50.1]} 13... Bxe4 {[%clk
0:01:57.2]} 14. Qxe4 {[%clk 0:02:51]} 14... c5 {[%clk 0:01:57.7]} 15. dxc5
{[%clk 0:02:47.2]} 15... Bxc5 {[%clk 0:01:54.4]} 16. O-O {[%clk 0:02:47.4]}
16... Qf6 {[%clk 0:01:52]} 17. Qe5 {[%clk 0:02:40.1]} 17... Qxe5 {[%clk
0:01:48.3]} 18. Nxe5 {[%clk 0:02:40.2]} 18... Rfd8 {[%clk 0:01:47.5]} 19. Rfd1
{[%clk 0:02:38.9]} 19... g6 {[%clk 0:01:44.7]} 20. Rac1 {[%clk 0:02:36.7]} 20...
Bf8 {[%clk 0:01:13.7]} 21. b3 {[%clk 0:01:39.6]} 21... Rac8 {[%clk 0:01:03.7]}
22. Kf1 {[%clk 0:01:30.3]} 22... Bg7 {[%clk 0:00:42.9]} 23. Nf3 {[%clk
0:01:02.1]} 23... Rxd1+ {[%clk 0:00:38.2]} 24. Rxd1 {[%clk 0:01:02.1]} 24... Rc2
{[%clk 0:00:38.9]} 25. Rd2 {[%clk 0:01:02.5]} 25... Rc7 {[%clk 0:00:34.7]} 26.
Ke2 {[%clk 0:01:02.6]} 26... f6 {[%clk 0:00:31.8]} 27. Nd4 {[%clk 0:01:00.7]}
27... Kf7 {[%clk 0:00:31.7]} 28. Rc2 {[%clk 0:00:57.1]} 28... Rxc2+ {[%clk
0:00:23.6]} 29. Nxc2 {[%clk 0:00:57.6]} 29... e5 {[%clk 0:00:19.2]} 30. e4
{[%clk 0:00:57.9]} 30... a5 {[%clk 0:00:18.9]} 31. Na3 {[%clk 0:00:56.5]} 31...
b4 {[%clk 0:00:18.5]} 32. Nc4 {[%clk 0:00:57]} 32... Bf8 {[%clk 0:00:16.2]} 33.
Nxa5 {[%clk 0:00:57.1]} 33... Ke6 {[%clk 0:00:16.6]} 34. Kd3 {[%clk 0:00:56.4]}
34... Kd6 {[%clk 0:00:15.4]} 35. Nc4+ {[%clk 0:00:56.3]} 35... Kc5 {[%clk
0:00:14.8]} 36. Ne3 {[%clk 0:00:55.7]} 36... Bh6 {[%clk 0:00:11.2]} 37. Nd5
{[%clk 0:00:55.1]} 37... f5 {[%clk 0:00:11.6]} 38. f3 {[%clk 0:00:54.2]} 38...
Bg7 {[%clk 0:00:05.4]} 39. Ne3 {[%clk 0:00:50.3]} 39... f4 {[%clk 0:00:05.3]}
40. Ng4 {[%clk 0:00:50]} 40... h5 {[%clk 0:00:04.4]} 41. Nf2 {[%clk 0:00:49.8]}
41... g5 {[%clk 0:00:04.9]} 42. h3 {[%clk 0:00:48.2]} 42... Bf6 {[%clk
0:00:04.9]} 43. Nd1 {[%clk 0:00:48.1]} 43... h4 {[%clk 0:00:04.1]} 44. Nb2
{[%clk 0:00:47.8]} 44... Bd8 {[%clk 0:00:04.6]} 45. Nc4 {[%clk 0:00:47.4]} 45...
Bf6 {[%clk 0:00:04.7]} 46. Na5 {[%clk 0:00:39.9]} 46... Bd8 {[%clk 0:00:04.4]}
47. Nb7+ {[%clk 0:00:39.2]} 47... Kc6 {[%clk 0:00:04.3]} 48. Nxd8+ {[%clk
0:00:40.1]} 48... Kd6 {[%clk 0:00:04.9]} 49. Nf7+ {[%clk 0:00:40.6]} 49... Kc5
{[%clk 0:00:05.2]} 50. Nxe5 {[%clk 0:00:40.7]} 50... Kd6 {[%clk 0:00:05.5]} 51.
Nf7+ {[%clk 0:00:41.6]} 51... Ke6 {[%clk 0:00:05.9]} 52. Nxg5+ {[%clk
0:00:42.5]} 52... Kf6 {[%clk 0:00:06.3]} 53. Nh7+ {[%clk 0:00:41.3]} 53... Kg6
{[%clk 0:00:05.8]} 54. Nf8+ {[%clk 0:00:40.8]} 54... Kf7 {[%clk 0:00:06.3]} 55.
Nd7 {[%clk 0:00:41.4]} 55... Ke6 {[%clk 0:00:06.4]} 56. Nc5+ {[%clk 0:00:41.6]}
56... Kd6 {[%clk 0:00:06.9]} 57. Kd4 {[%clk 0:00:41.8]} 57... Kc6 {[%clk
0:00:07.2]} 58. Ne6 {[%clk 0:00:42]} 58... Kb5 {[%clk 0:00:07.8]} 59. Nxf4
{[%clk 0:00:42.9]} 59... Ka5 {[%clk 0:00:08.2]} 60. Ng6 {[%clk 0:00:43.8]} 60...
Kb5 {[%clk 0:00:08.7]} 61. Nxh4 {[%clk 0:00:44.7]} 61... Ka5 {[%clk 0:00:09.6]}
62. Nf5 {[%clk 0:00:45.6]} 62... Kb5 {[%clk 0:00:10.2]} 63. h4 {[%clk
0:00:46.5]} 63... Ka5 {[%clk 0:00:10.8]} 64. h5 {[%clk 0:00:47.4]} 64... Kb5
{[%clk 0:00:11.4]} 65. h6 {[%clk 0:00:48.3]} 65... Ka5 {[%clk 0:00:12.2]} 66. h7
{[%clk 0:00:49.2]} 66... Kb5 {[%clk 0:00:12.9]} 67. g4 {[%clk 0:00:50.1]} 67...
Ka5 {[%clk 0:00:13.7]} 68. g5 {[%clk 0:00:51]} 68... Kb5 {[%clk 0:00:14.5]} 69.
g6 {[%clk 0:00:51.9]} 69... Ka5 {[%clk 0:00:15.4]} 70. g7 {[%clk 0:00:52.8]}
70... Kb5 {[%clk 0:00:16.3]} 71. Ne7 {[%clk 0:00:53.7]} 71... Ka5 {[%clk
0:00:17.2]} 72. Nd5 {[%clk 0:00:54.6]} 72... Kb5 {[%clk 0:00:18.1]} 73. f4
{[%clk 0:00:55.5]} 73... Ka5 {[%clk 0:00:19]} 74. f5 {[%clk 0:00:56.4]} 74...
Kb5 {[%clk 0:00:19.9]} 75. f6 {[%clk 0:00:57.3]} 75... Ka5 {[%clk 0:00:20.4]}
76. f7 {[%clk 0:00:58.2]} 76... Kb5 {[%clk 0:00:21.2]} 77. e5 {[%clk 0:00:59.1]}
77... Ka5 {[%clk 0:00:21.2]} 78. e6 {[%clk 0:01:00]} 78... Kb5 {[%clk 0:00:22]}
79. e7 {[%clk 0:01:00.9]} 79... Ka5 {[%clk 0:00:22.9]} 80. Kc4 {[%clk
0:01:01.4]} 80... Ka6 {[%clk 0:00:23.1]} 81. Nxb4+ {[%clk 0:01:01.9]} 81... Ka5
{[%clk 0:00:23.3]} 82. Nc6+ {[%clk 0:01:02]} 82... Kb6 {[%clk 0:00:23.5]} 83.
Kd5 {[%clk 0:01:00.9]} 83... Ka6 {[%clk 0:00:23.9]} 84. a4 {[%clk 0:00:58.7]}
84... Kb6 {[%clk 0:00:23.9]} 85. b4 {[%clk 0:00:57.2]} 85... Ka6 {[%clk
0:00:24.2]} 86. Kc5 {[%clk 0:00:54.9]} 86... Kb7 {[%clk 0:00:24.3]} 87. h8=R
{[%clk 0:00:40]} 87... Kc7 {[%clk 0:00:23.4]} 88. Rh1 {[%clk 0:00:40.2]} 88...
Kb7 {[%clk 0:00:23.8]} 89. g8=N {[%clk 0:00:37]} 89... Ka6 {[%clk 0:00:24.2]}
90. Nh6 {[%clk 0:00:37.4]} 90... Kb7 {[%clk 0:00:24.6]} 91. Ng4 {[%clk
0:00:37.9]} 91... Ka6 {[%clk 0:00:25.4]} 92. Ne3 {[%clk 0:00:38.5]} 92... Kb7
{[%clk 0:00:26]} 93. Ng2 {[%clk 0:00:39.1]} 93... Ka6 {[%clk 0:00:26.4]} 94. Nf4
{[%clk 0:00:40]} 94... Kb7 {[%clk 0:00:27]} 95. Ne2 {[%clk 0:00:40.9]} 95... Ka6
{[%clk 0:00:27.6]} 96. Ng1 {[%clk 0:00:41.8]} 96... Kb7 {[%clk 0:00:28.2]} 97.
f8=B {[%clk 0:00:37.8]} 97... Ka6 {[%clk 0:00:29.1]} 98. Bh6 {[%clk 0:00:37.9]}
98... Kb7 {[%clk 0:00:30]} 99. Bc1 {[%clk 0:00:38.7]} 99... Ka6 {[%clk
0:00:30.9]} 100. e8=B {[%clk 0:00:37.7]} 100... Kb7 {[%clk 0:00:31.8]} 101. Bh5
{[%clk 0:00:38.2]} 101... Ka6 {[%clk 0:00:32.7]} 102. Be2+ {[%clk 0:00:39]}
102... Kb7 {[%clk 0:00:33.6]} 103. Bf1 {[%clk 0:00:39.9]} 103... Kc7 {[%clk
0:00:33.1]} 104. Nd4 {[%clk 0:00:40.8]} 104... Kb7 {[%clk 0:00:33.5]} 105. Nb3
{[%clk 0:00:41.7]} 105... Kc7 {[%clk 0:00:34]} 106. Nd2 {[%clk 0:00:42.6]}
106... Kb7 {[%clk 0:00:34.6]} 107. Nb1 {[%clk 0:00:43.5]} 107... Kc7 {[%clk
0:00:35.2]} 108. b5 {[%clk 0:00:41.4]} 108... Kb7 {[%clk 0:00:36.1]} 109. Rh7+
{[%clk 0:00:39]} 109... Ka8 {[%clk 0:00:35.7]} 110. Kb6 {[%clk 0:00:33]} 110...
Kb8 {[%clk 0:00:35.8]} 111. Rh8# {[%clk 0:00:33.9]} 1-0

[Event "Late-Titled-Tuesday-Blitz-January-30-2024"]
[Site "Chess.com"]
[Date "2024.01.30"]
[Round "11"]
[White "GMKrikor"]
[Black "wqws"]
[Result "1-0"]
[WhiteElo "2791"]
[BlackElo "2629"]
[TimeControl "180+1"]
[EndTime "16:07:37 PST"]
[Termination "GMKrikor won by resignation"]

1. Nf3 {[%clk 0:03:00.9]} 1... Nf6 {[%clk 0:02:59.7]} 2. c4 {[%clk 0:03:01]}
2... g6 {[%clk 0:02:59.3]} 3. Nc3 {[%clk 0:03:01.1]} 3... Bg7 {[%clk 0:02:59.8]}
4. e4 {[%clk 0:03:01.2]} 4... d6 {[%clk 0:03:00]} 5. d4 {[%clk 0:03:01.5]} 5...
O-O {[%clk 0:03:00.2]} 6. h3 {[%clk 0:03:01.2]} 6... a6 {[%clk 0:02:50.9]} 7.
Be3 {[%clk 0:02:59]} 7... Nfd7 {[%clk 0:02:45.4]} 8. Be2 {[%clk 0:02:54.6]} 8...
e5 {[%clk 0:02:45.1]} 9. O-O {[%clk 0:02:52.5]} 9... Nc6 {[%clk 0:02:44]} 10.
Re1 {[%clk 0:02:49.3]} 10... f5 {[%clk 0:02:18.5]} 11. exf5 {[%clk 0:02:37.4]}
11... gxf5 {[%clk 0:02:16.5]} 12. dxe5 {[%clk 0:01:49]} 12... f4 {[%clk
0:02:13]} 13. Bd2 {[%clk 0:01:42.7]} 13... Ndxe5 {[%clk 0:02:06.1]} 14. Nd5
{[%clk 0:01:27.6]} 14... Nxf3+ {[%clk 0:02:06.2]} 15. Bxf3 {[%clk 0:01:27.5]}
15... Ne5 {[%clk 0:02:06.6]} 16. Bxf4 {[%clk 0:01:08.2]} 16... c6 {[%clk
0:02:01]} 17. Bxe5 {[%clk 0:01:04.8]} 17... Bxe5 {[%clk 0:02:00.9]} 18. Nc3
{[%clk 0:00:42.8]} 18... Qg5 {[%clk 0:01:39.8]} 19. Bg4 {[%clk 0:00:37.9]} 19...
h5 {[%clk 0:01:29.7]} 20. Ne4 {[%clk 0:00:29.4]} 20... Qg6 {[%clk 0:01:19.5]}
21. Bxh5 {[%clk 0:00:26.7]} 21... Qh6 {[%clk 0:01:15.7]} 22. Bg4 {[%clk
0:00:25.6]} 22... Bxg4 {[%clk 0:01:10.8]} 23. Qxg4+ {[%clk 0:00:25.1]} 23... Kh8
{[%clk 0:01:11.1]} 24. Ng5 {[%clk 0:00:11.4]} 24... Qg6 {[%clk 0:00:56]} 25. h4
{[%clk 0:00:11.2]} 25... Rf5 {[%clk 0:00:48.6]} 26. Re2 {[%clk 0:00:07.1]} 26...
Rg8 {[%clk 0:00:48.5]} 27. Rae1 {[%clk 0:00:06.2]} 27... Rf4 {[%clk 0:00:42.3]}
28. Qh3 {[%clk 0:00:06.1]} 28... Rxc4 {[%clk 0:00:41.6]} 29. b3 {[%clk
0:00:05.6]} 29... Rf4 {[%clk 0:00:39.7]} 30. g3 {[%clk 0:00:06.3]} 30... Rff8
{[%clk 0:00:38.8]} 31. f4 {[%clk 0:00:06.9]} 31... Bd4+ {[%clk 0:00:37.5]} 32.
Kg2 {[%clk 0:00:07.6]} 32... Re8 {[%clk 0:00:34.3]} 33. Qg4 {[%clk 0:00:06.8]}
33... d5 {[%clk 0:00:26.8]} 34. Re6 {[%clk 0:00:06.7]} 34... Qc2+ {[%clk
0:00:25.7]} 35. Kh3 {[%clk 0:00:07]} 35... Rxe6 {[%clk 0:00:22.6]} 36. Qh5+
{[%clk 0:00:07]} 36... Kg7 {[%clk 0:00:21.7]} 37. Rxe6 {[%clk 0:00:07.7]} 37...
Qf5+ {[%clk 0:00:17.4]} 38. Qg4 {[%clk 0:00:06.4]} 38... Qxg4+ {[%clk
0:00:17.2]} 39. Kxg4 {[%clk 0:00:07.3]} 39... Bf6 {[%clk 0:00:17.5]} 40. Kf5
{[%clk 0:00:07.1]} 40... Rf8 {[%clk 0:00:16.6]} 41. Kg4 {[%clk 0:00:07.6]} 41...
Rd8 {[%clk 0:00:15.9]} 42. Re2 {[%clk 0:00:06.5]} 42... Rd7 {[%clk 0:00:15.6]}
43. Ne6+ {[%clk 0:00:06.1]} 43... Kf7 {[%clk 0:00:15.7]} 44. Nc5 {[%clk
0:00:06.8]} 44... Rc7 {[%clk 0:00:15.3]} 45. Kf5 {[%clk 0:00:05.9]} 45... Be7
{[%clk 0:00:14.5]} 46. Nd3 {[%clk 0:00:05.3]} 46... c5 {[%clk 0:00:15]} 47. h5
{[%clk 0:00:04.7]} 47... c4 {[%clk 0:00:14.4]} 48. bxc4 {[%clk 0:00:05.1]} 48...
dxc4 {[%clk 0:00:15.3]} 49. Ne5+ {[%clk 0:00:05.9]} 49... Kg7 {[%clk 0:00:15.8]}
50. g4 {[%clk 0:00:06.5]} 50... c3 {[%clk 0:00:15.2]} 51. g5 {[%clk 0:00:07.1]}
51... c2 {[%clk 0:00:15.2]} 52. Nd3 {[%clk 0:00:07.7]} 52... Kf8 {[%clk
0:00:11.1]} 53. h6 {[%clk 0:00:07.1]} 53... Ba3 {[%clk 0:00:07.7]} 54. g6 {[%clk
0:00:06.3]} 54... c1=Q {[%clk 0:00:06.9]} 55. g7+ {[%clk 0:00:05.1]} 55... Kf7
{[%clk 0:00:06.3]} 56. Nxc1 {[%clk 0:00:05.6]} 56... Bxc1 {[%clk 0:00:05.6]} 57.
Re8 {[%clk 0:00:04.1]} 57... Rc5+ {[%clk 0:00:05.2]} 58. Kg4 {[%clk 0:00:03.3]}
58... Kxe8 {[%clk 0:00:05.1]} 59. g8=Q+ {[%clk 0:00:03.5]} 59... Kd7 {[%clk
0:00:06]} 60. h7 {[%clk 0:00:04.1]} 60... Bb2 {[%clk 0:00:04.8]} 61. Qf7+ {[%clk
0:00:04.4]} 61... Kc6 {[%clk 0:00:04.5]} 62. Qe6+ {[%clk 0:00:04.6]} 62... Kc7
{[%clk 0:00:04.5]} 63. Qf7+ {[%clk 0:00:04.1]} 63... Kb6 {[%clk 0:00:04.1]} 64.
Qg8 {[%clk 0:00:02.8]} 64... Rc1 {[%clk 0:00:03.4]} 65. h8=Q {[%clk 0:00:02.4]}
65... Bxh8 {[%clk 0:00:03.7]} 66. Qxh8 {[%clk 0:00:03.3]} 66... Rc2 {[%clk
0:00:04]} 67. a3 {[%clk 0:00:03.1]} 67... Rg2+ {[%clk 0:00:03.6]} 68. Kf3 {[%clk
0:00:03.1]} 68... Rc2 {[%clk 0:00:04]} 69. Qd4+ {[%clk 0:00:03.2]} 69... Ka5
{[%clk 0:00:03.6]} 70. Qd3 {[%clk 0:00:04.1]} 70... Rc6 {[%clk 0:00:03]} 71. f5
{[%clk 0:00:04.6]} 71... b5 {[%clk 0:00:03.3]} 72. Ke4 {[%clk 0:00:05.1]} 72...
Ka4 {[%clk 0:00:03.3]} 73. Ke5 {[%clk 0:00:05.6]} 73... a5 {[%clk 0:00:02]} 74.
f6 {[%clk 0:00:05.7]} 74... b4 {[%clk 0:00:02.1]} 75. axb4 {[%clk 0:00:06.6]}
75... axb4 {[%clk 0:00:03]} 76. Qd5 {[%clk 0:00:06.3]} 76... Rb6 {[%clk
0:00:03.1]} 77. Qc5 {[%clk 0:00:06.3]} 77... Rb8 {[%clk 0:00:03.3]} 78. Qa7+
{[%clk 0:00:06]} 78... Kb3 {[%clk 0:00:03.4]} 1-0